[Event "Early-Titled-Tuesday-Blitz-September-05-2023"]
[Site "Chess.com"]
[Date "2023.09.05"]
[Round "1"]
[White "brm72"]
[Black "IMSlavin"]
[Result "0-1"]
[WhiteElo "2556"]
[BlackElo "2160"]
[TimeControl "180+1"]
[EndTime "8:06:31 PDT"]
[Termination "IMSlavin won by resignation"]

1. d4 {[%clk 0:02:59.7]} 1... Nc6 {[%clk 0:03:00.3]} 2. c4 {[%clk 0:03:00.2]}
2... e5 {[%clk 0:03:00]} 3. d5 {[%clk 0:02:58.6]} 3... Nce7 {[%clk 0:02:59.6]}
4. Nc3 {[%clk 0:02:58.7]} 4... Ng6 {[%clk 0:02:59.7]} 5. e4 {[%clk 0:02:58.6]}
5... Bc5 {[%clk 0:02:59.9]} 6. g3 {[%clk 0:02:56.9]} 6... Nf6 {[%clk 0:02:59.6]}
7. Bg2 {[%clk 0:02:52.5]} 7... a6 {[%clk 0:02:58.9]} 8. Nf3 {[%clk 0:02:49.2]}
8... O-O {[%clk 0:02:58.1]} 9. O-O {[%clk 0:02:45.4]} 9... d6 {[%clk 0:02:57.6]}
10. Rb1 {[%clk 0:02:44.8]} 10... Bd7 {[%clk 0:02:52.4]} 11. b4 {[%clk
0:02:43.9]} 11... Ba7 {[%clk 0:02:52.4]} 12. Ne1 {[%clk 0:02:44.2]} 12... Bc8
{[%clk 0:02:47.3]} 13. Nd3 {[%clk 0:02:39.5]} 13... h6 {[%clk 0:02:45.5]} 14. h3
{[%clk 0:02:37.6]} 14... Qe7 {[%clk 0:02:44.7]} 15. Qe2 {[%clk 0:02:36.6]} 15...
Bd7 {[%clk 0:02:43.2]} 16. Be3 {[%clk 0:02:36.6]} 16... Nh7 {[%clk 0:02:38.1]}
17. Bxa7 {[%clk 0:02:35.9]} 17... Rxa7 {[%clk 0:02:37.8]} 18. Qe3 {[%clk
0:02:36.8]} 18... Raa8 {[%clk 0:02:37.8]} 19. c5 {[%clk 0:02:35.2]} 19... f5
{[%clk 0:02:36.1]} 20. exf5 {[%clk 0:02:28.9]} 20... Bxf5 {[%clk 0:02:35]} 21.
Ne4 {[%clk 0:02:15.8]} 21... Nf6 {[%clk 0:02:33.8]} 22. Nxf6+ {[%clk 0:02:05.8]}
22... Rxf6 {[%clk 0:02:32.7]} 23. Rfe1 {[%clk 0:01:56.7]} 23... Raf8 {[%clk
0:02:28.9]} 24. Rb2 {[%clk 0:01:46.7]} 24... Qd7 {[%clk 0:02:22.6]} 25. Kh2
{[%clk 0:01:45.8]} 25... Ne7 {[%clk 0:02:07.1]} 26. Rd1 {[%clk 0:01:37.3]} 26...
Qa4 {[%clk 0:02:02.2]} 27. Rdd2 {[%clk 0:01:10.9]} 27... Bg6 {[%clk 0:02:00.9]}
28. Be4 {[%clk 0:01:09.4]} 28... Bxe4 {[%clk 0:01:51.3]} 29. Qxe4 {[%clk
0:01:10.3]} 29... Nf5 {[%clk 0:01:52]} 30. Kg2 {[%clk 0:01:02.5]} 30... Nd4
{[%clk 0:01:50]} 31. f4 {[%clk 0:00:59.3]} 31... Qe8 {[%clk 0:01:28]} 32. fxe5
{[%clk 0:00:02.3]} 32... Nf3 {[%clk 0:01:17.6]} 33. Re2 {[%clk 0:00:02.3]} 33...
dxe5 {[%clk 0:01:11.3]} 34. Nxe5 {[%clk 0:00:02.6]} 34... Nxe5 {[%clk
0:01:10.4]} 35. Qxe5 {[%clk 0:00:03.5]} 35... Rf2+ {[%clk 0:01:09.8]} 36. Kg1
{[%clk 0:00:03.9]} 36... Rf1+ {[%clk 0:01:08.5]} 37. Kg2 {[%clk 0:00:04.5]}
37... R8f2+ {[%clk 0:01:07.9]} 38. Rxf2 {[%clk 0:00:05]} 38... Rxf2+ {[%clk
0:01:06.8]} 0-1

[Event "Early-Titled-Tuesday-Blitz-September-05-2023"]
[Site "Chess.com"]
[Date "2023.09.05"]
[Round "1"]
[White "maurovargas01"]
[Black "ejam94"]
[Result "0-1"]
[WhiteElo "1867"]
[BlackElo "2553"]
[TimeControl "180+1"]
[EndTime "8:06:33 PDT"]
[Termination "ejam94 won on time"]

1. e4 {[%clk 0:02:56.3]} 1... c5 {[%clk 0:02:57.9]} 2. Nc3 {[%clk 0:02:55.4]}
2... Nc6 {[%clk 0:02:57.6]} 3. f4 {[%clk 0:02:53.8]} 3... g6 {[%clk 0:02:57.3]}
4. Nf3 {[%clk 0:02:51.7]} 4... Bg7 {[%clk 0:02:57.2]} 5. Bb5 {[%clk 0:02:46.8]}
5... d6 {[%clk 0:02:54.6]} 6. Bxc6+ {[%clk 0:02:45.8]} 6... bxc6 {[%clk
0:02:54.5]} 7. O-O {[%clk 0:02:46.6]} 7... e6 {[%clk 0:02:50.8]} 8. Qe1 {[%clk
0:02:46.7]} 8... Ne7 {[%clk 0:02:51.1]} 9. d3 {[%clk 0:02:46.2]} 9... O-O {[%clk
0:02:49.6]} 10. Bd2 {[%clk 0:02:41.5]} 10... Rb8 {[%clk 0:02:49.2]} 11. Rb1
{[%clk 0:02:40.4]} 11... d5 {[%clk 0:02:22]} 12. Qh4 {[%clk 0:02:33.8]} 12...
dxe4 {[%clk 0:02:15.5]} 13. Nxe4 {[%clk 0:02:32.3]} 13... c4 {[%clk 0:02:09.7]}
14. Nf6+ {[%clk 0:02:15.7]} 14... Bxf6 {[%clk 0:02:09.5]} 15. Qxf6 {[%clk
0:02:15.6]} 15... Nf5 {[%clk 0:02:04.8]} 16. Qe5 {[%clk 0:02:13]} 16... cxd3
{[%clk 0:02:01.2]} 17. Bc3 {[%clk 0:02:06.4]} 17... Qb6+ {[%clk 0:01:50.3]} 18.
Kh1 {[%clk 0:02:03.2]} 18... f6 {[%clk 0:01:49.9]} 19. Qe1 {[%clk 0:01:15.6]}
19... dxc2 {[%clk 0:01:46.2]} 20. Rc1 {[%clk 0:01:13.5]} 20... Qe3 {[%clk
0:01:27.3]} 21. Rxc2 {[%clk 0:01:08.9]} 21... Ba6 {[%clk 0:01:21.9]} 22. Qxe3
{[%clk 0:00:40.7]} 22... Nxe3 {[%clk 0:01:21.6]} 23. Rff2 {[%clk 0:00:39.9]}
23... Nxc2 {[%clk 0:01:21.2]} 24. Rxc2 {[%clk 0:00:40.8]} 24... Kf7 {[%clk
0:01:19.7]} 25. Bb4 {[%clk 0:00:34.1]} 25... Rxb4 {[%clk 0:01:19.2]} 26. Rxc6
{[%clk 0:00:25.1]} 26... Bb7 {[%clk 0:01:12.1]} 27. Rc7+ {[%clk 0:00:23.6]}
27... Kg8 {[%clk 0:01:12.5]} 28. b3 {[%clk 0:00:21.1]} 28... Rc8 {[%clk
0:01:12.3]} 29. Rxc8+ {[%clk 0:00:14.6]} 29... Bxc8 {[%clk 0:01:13.2]} 30. h3
{[%clk 0:00:15.5]} 30... Bb7 {[%clk 0:01:11.8]} 31. Nd2 {[%clk 0:00:13.3]} 31...
Rxf4 {[%clk 0:01:11.7]} 32. Nc4 {[%clk 0:00:12.1]} 32... Rf2 {[%clk 0:01:10.1]}
33. Nd6 {[%clk 0:00:13]} 33... Bxg2+ {[%clk 0:01:09]} 34. Kg1 {[%clk 0:00:11.4]}
34... Rxa2 {[%clk 0:01:09.9]} 35. Ne8 {[%clk 0:00:07.5]} 35... Kf7 {[%clk
0:01:09.5]} 36. Nd6+ {[%clk 0:00:07]} 36... Ke7 {[%clk 0:01:10]} 37. Nc4 {[%clk
0:00:06.6]} 37... e5 {[%clk 0:01:10.5]} 0-1

[Event "Early-Titled-Tuesday-Blitz-September-05-2023"]
[Site "Chess.com"]
[Date "2023.09.05"]
[Round "1"]
[White "campochess"]
[Black "Pingah9"]
[Result "0-1"]
[WhiteElo "2204"]
[BlackElo "2587"]
[TimeControl "180+1"]
[EndTime "8:06:36 PDT"]
[Termination "Pingah9 won by checkmate"]

1. e4 {[%clk 0:02:59.2]} 1... c5 {[%clk 0:02:57.9]} 2. Nc3 {[%clk 0:02:58.3]}
2... Nc6 {[%clk 0:02:56.4]} 3. g3 {[%clk 0:02:58.5]} 3... g6 {[%clk 0:02:56.3]}
4. Bg2 {[%clk 0:02:58.6]} 4... Bg7 {[%clk 0:02:56.7]} 5. Nge2 {[%clk 0:02:58.6]}
5... d6 {[%clk 0:02:56.7]} 6. d3 {[%clk 0:02:58.2]} 6... Nd4 {[%clk 0:02:56.1]}
7. Nxd4 {[%clk 0:02:57.1]} 7... cxd4 {[%clk 0:02:55.2]} 8. Ne2 {[%clk 0:02:57]}
8... e6 {[%clk 0:02:55.2]} 9. O-O {[%clk 0:02:55.5]} 9... Ne7 {[%clk 0:02:55]}
10. Bg5 {[%clk 0:02:49.9]} 10... h6 {[%clk 0:02:53.9]} 11. Bxe7 {[%clk
0:02:47.1]} 11... Qxe7 {[%clk 0:02:54.8]} 12. f4 {[%clk 0:02:46.4]} 12... O-O
{[%clk 0:02:53.4]} 13. g4 {[%clk 0:02:42.1]} 13... f5 {[%clk 0:02:44.5]} 14. Ng3
{[%clk 0:02:41.1]} 14... fxe4 {[%clk 0:02:38.6]} 15. Nxe4 {[%clk 0:02:37.7]}
15... d5 {[%clk 0:02:24.4]} 16. Nd2 {[%clk 0:02:37]} 16... Bd7 {[%clk
0:02:21.1]} 17. Qe2 {[%clk 0:02:36.6]} 17... Qd6 {[%clk 0:02:19.7]} 18. Qf2
{[%clk 0:02:16.6]} 18... g5 {[%clk 0:02:07.4]} 19. f5 {[%clk 0:02:10.4]} 19...
exf5 {[%clk 0:02:06.4]} 20. gxf5 {[%clk 0:02:10.2]} 20... Bxf5 {[%clk
0:02:04.6]} 21. Qg3 {[%clk 0:02:06.7]} 21... Qxg3 {[%clk 0:01:46.9]} 22. hxg3
{[%clk 0:02:05.7]} 22... Rad8 {[%clk 0:01:40.5]} 23. Rae1 {[%clk 0:02:02.6]}
23... Rf7 {[%clk 0:01:32.4]} 24. Nb3 {[%clk 0:01:59.7]} 24... b6 {[%clk
0:01:30.8]} 25. Nc1 {[%clk 0:01:47.6]} 25... Kh7 {[%clk 0:01:22.3]} 26. a3
{[%clk 0:01:47.1]} 26... Kg6 {[%clk 0:01:21.3]} 27. Na2 {[%clk 0:01:46.6]} 27...
a5 {[%clk 0:01:20.3]} 28. b4 {[%clk 0:01:45.5]} 28... h5 {[%clk 0:01:18]} 29.
bxa5 {[%clk 0:01:44.5]} 29... bxa5 {[%clk 0:01:18.9]} 30. Re2 {[%clk 0:01:43.9]}
30... Bg4 {[%clk 0:01:14.2]} 31. Ref2 {[%clk 0:01:43]} 31... Rxf2 {[%clk
0:01:11.1]} 32. Rxf2 {[%clk 0:01:42.9]} 32... Be5 {[%clk 0:01:11.2]} 33. Nc1
{[%clk 0:01:28.1]} 33... Bxg3 {[%clk 0:01:10.2]} 34. Rf1 {[%clk 0:01:28.3]}
34... Bf4 {[%clk 0:01:08.5]} 35. Nb3 {[%clk 0:01:27.8]} 35... a4 {[%clk
0:01:07.2]} 36. Nc5 {[%clk 0:01:26.5]} 36... Rc8 {[%clk 0:00:59.8]} 37. Nxa4
{[%clk 0:01:22.3]} 37... Rxc2 {[%clk 0:00:59.3]} 38. Nb6 {[%clk 0:01:16.7]}
38... h4 {[%clk 0:00:53.6]} 39. Bxd5 {[%clk 0:01:12.6]} 39... h3 {[%clk
0:00:50]} 40. Be4+ {[%clk 0:01:11.8]} 40... Kh5 {[%clk 0:00:49.2]} 41. Nd5
{[%clk 0:01:10.9]} 41... Be3+ {[%clk 0:00:38.4]} 42. Kh1 {[%clk 0:01:08.1]}
42... Kh4 {[%clk 0:00:37.2]} 43. Nf6 {[%clk 0:00:59.4]} 43... Be2 {[%clk
0:00:35.4]} 44. Rb1 {[%clk 0:00:48.3]} 44... g4 {[%clk 0:00:34.8]} 45. Bf5
{[%clk 0:00:41.3]} 45... Bf3# {[%clk 0:00:31.6]} 0-1

[Event "Early-Titled-Tuesday-Blitz-September-05-2023"]
[Site "Chess.com"]
[Date "2023.09.05"]
[Round "1"]
[White "Boundless_Strike"]
[Black "Zhigalko_Sergei"]
[Result "0-1"]
[WhiteElo "2486"]
[BlackElo "2905"]
[TimeControl "180+1"]
[EndTime "8:06:37 PDT"]
[Termination "Zhigalko_Sergei won by resignation"]

1. d3 {[%clk 0:02:59.7]} 1... e5 {[%clk 0:02:55.4]} 2. e4 {[%clk 0:02:55]} 2...
Bc5 {[%clk 0:02:43.6]} 3. Nf3 {[%clk 0:02:50.2]} 3... d6 {[%clk 0:02:42.7]} 4.
h3 {[%clk 0:02:43]} 4... Nc6 {[%clk 0:02:39.4]} 5. c3 {[%clk 0:02:39.9]} 5...
Nf6 {[%clk 0:02:37.5]} 6. Be2 {[%clk 0:02:36.9]} 6... a6 {[%clk 0:02:33.5]} 7.
Nbd2 {[%clk 0:02:35.9]} 7... Ba7 {[%clk 0:02:32]} 8. Qc2 {[%clk 0:02:35]} 8...
O-O {[%clk 0:02:30.2]} 9. g4 {[%clk 0:02:32.3]} 9... d5 {[%clk 0:02:25]} 10. Nf1
{[%clk 0:02:24.6]} 10... Be6 {[%clk 0:02:05.7]} 11. Ng3 {[%clk 0:02:21.8]} 11...
Qd6 {[%clk 0:01:48]} 12. g5 {[%clk 0:01:54.7]} 12... Nd7 {[%clk 0:01:44.7]} 13.
h4 {[%clk 0:01:49.8]} 13... f5 {[%clk 0:01:39]} 14. exf5 {[%clk 0:01:24.2]}
14... Bxf5 {[%clk 0:01:36.9]} 15. Nxf5 {[%clk 0:00:57.2]} 15... Rxf5 {[%clk
0:01:36.7]} 16. Bd2 {[%clk 0:00:56.1]} 16... Raf8 {[%clk 0:01:34.6]} 17. Rh3
{[%clk 0:00:55]} 17... Qe6 {[%clk 0:00:52.3]} 18. O-O-O {[%clk 0:00:48.9]} 18...
e4 {[%clk 0:00:52.3]} 19. dxe4 {[%clk 0:00:40]} 19... dxe4 {[%clk 0:00:52.2]}
20. Nd4 {[%clk 0:00:40.7]} 20... Bxd4 {[%clk 0:00:22]} 21. cxd4 {[%clk
0:00:40.7]} 21... Nb6 {[%clk 0:00:20.3]} 22. Rb3 {[%clk 0:00:23.5]} 22... Nxd4
{[%clk 0:00:15.9]} 0-1

[Event "Early-Titled-Tuesday-Blitz-September-05-2023"]
[Site "Chess.com"]
[Date "2023.09.05"]
[Round "1"]
[White "viktorgen2021"]
[Black "klimkoj"]
[Result "0-1"]
[WhiteElo "2433"]
[BlackElo "2784"]
[TimeControl "180+1"]
[EndTime "8:06:38 PDT"]
[Termination "klimkoj won by checkmate"]

1. d4 {[%clk 0:02:57.6]} 1... Nf6 {[%clk 0:02:59.7]} 2. Nf3 {[%clk 0:02:56.9]}
2... e6 {[%clk 0:02:59.8]} 3. g3 {[%clk 0:02:52.5]} 3... d5 {[%clk 0:03:00.7]}
4. c4 {[%clk 0:02:49.5]} 4... Bb4+ {[%clk 0:02:58.3]} 5. Bd2 {[%clk 0:02:48.2]}
5... Be7 {[%clk 0:02:58.1]} 6. Bg2 {[%clk 0:02:48.1]} 6... O-O {[%clk
0:02:58.3]} 7. O-O {[%clk 0:02:48.7]} 7... c6 {[%clk 0:02:53.4]} 8. Qc2 {[%clk
0:02:48.8]} 8... Nbd7 {[%clk 0:02:54]} 9. Nc3 {[%clk 0:02:49]} 9... b6 {[%clk
0:02:54.4]} 10. e4 {[%clk 0:02:49.1]} 10... dxc4 {[%clk 0:02:53]} 11. Rfe1
{[%clk 0:02:46.1]} 11... b5 {[%clk 0:02:53.3]} 12. Rad1 {[%clk 0:02:38.9]} 12...
Bb7 {[%clk 0:02:53]} 13. Bf4 {[%clk 0:02:36.4]} 13... h6 {[%clk 0:02:36.9]} 14.
Qc1 {[%clk 0:02:33.3]} 14... a6 {[%clk 0:02:33.4]} 15. h3 {[%clk 0:02:14.3]}
15... Rc8 {[%clk 0:02:28.8]} 16. g4 {[%clk 0:02:12.8]} 16... Nh7 {[%clk
0:02:16.9]} 17. d5 {[%clk 0:02:02.8]} 17... exd5 {[%clk 0:02:12.8]} 18. exd5
{[%clk 0:02:03.7]} 18... cxd5 {[%clk 0:02:13.2]} 19. Nxd5 {[%clk 0:01:56.7]}
19... Bc5 {[%clk 0:02:06.6]} 20. Ne5 {[%clk 0:01:27.8]} 20... Nxe5 {[%clk
0:02:01.1]} 21. Rxe5 {[%clk 0:01:26.4]} 21... Qh4 {[%clk 0:01:53.6]} 22. Qc2
{[%clk 0:01:00.6]} 22... Ng5 {[%clk 0:01:51]} 23. Bxg5 {[%clk 0:00:56.6]} 23...
hxg5 {[%clk 0:01:48.2]} 24. Ne7+ {[%clk 0:00:44]} 24... Bxe7 {[%clk 0:01:47.5]}
25. Bxb7 {[%clk 0:00:44.5]} 25... Rc7 {[%clk 0:01:29.6]} 26. Bg2 {[%clk
0:00:43]} 26... Bc5 {[%clk 0:01:25.6]} 27. Rdd5 {[%clk 0:00:41.9]} 27... Be7
{[%clk 0:01:21.8]} 28. Qe2 {[%clk 0:00:41.5]} 28... Bf6 {[%clk 0:01:21.8]} 29.
Re8 {[%clk 0:00:41.6]} 29... Rc8 {[%clk 0:01:21.4]} 30. Rxc8 {[%clk 0:00:37.7]}
30... Rxc8 {[%clk 0:01:21.3]} 31. Rd7 {[%clk 0:00:35.8]} 31... Rf8 {[%clk
0:01:18.5]} 32. Qf3 {[%clk 0:00:30.8]} 32... Qh7 {[%clk 0:01:18]} 33. Qd5 {[%clk
0:00:26.5]} 33... Qb1+ {[%clk 0:01:15.7]} 34. Kh2 {[%clk 0:00:26.9]} 34... Qxb2
{[%clk 0:01:16.4]} 35. Kg3 {[%clk 0:00:16.3]} 35... Qc3+ {[%clk 0:01:11.6]} 36.
Kh2 {[%clk 0:00:14.1]} 36... Be5+ {[%clk 0:01:11.7]} 37. Kg1 {[%clk 0:00:13.6]}
37... Qc1+ {[%clk 0:01:06]} 38. Bf1 {[%clk 0:00:13.5]} 38... Qf4 {[%clk
0:01:06.7]} 39. Qg2 {[%clk 0:00:12.1]} 39... Bd4 {[%clk 0:01:06.6]} 40. Rd5
{[%clk 0:00:11.6]} 40... g6 {[%clk 0:01:05]} 41. h4 {[%clk 0:00:10.9]} 41...
gxh4 {[%clk 0:01:04.8]} 42. g5 {[%clk 0:00:07.8]} 42... h3 {[%clk 0:01:04.2]}
43. Qxh3 {[%clk 0:00:06.9]} 43... Qxf2+ {[%clk 0:01:04.1]} 44. Kh1 {[%clk
0:00:07.5]} 44... Qg1# {[%clk 0:01:05]} 0-1

[Event "Early-Titled-Tuesday-Blitz-September-05-2023"]
[Site "Chess.com"]
[Date "2023.09.05"]
[Round "1"]
[White "leschebaza"]
[Black "econpower"]
[Result "0-1"]
[WhiteElo "2416"]
[BlackElo "2740"]
[TimeControl "180+1"]
[EndTime "8:06:44 PDT"]
[Termination "econpower won by resignation"]

1. Nf3 {[%clk 0:03:00]} 1... g6 {[%clk 0:02:59.3]} 2. d4 {[%clk 0:02:59.6]} 2...
Bg7 {[%clk 0:03:00.2]} 3. c4 {[%clk 0:03:00.1]} 3... d6 {[%clk 0:03:00.7]} 4.
Nc3 {[%clk 0:03:00.6]} 4... Nd7 {[%clk 0:03:01.3]} 5. e4 {[%clk 0:02:59.2]} 5...
e5 {[%clk 0:03:01.5]} 6. Be2 {[%clk 0:02:57.1]} 6... Ne7 {[%clk 0:03:01.8]} 7.
O-O {[%clk 0:02:56.9]} 7... O-O {[%clk 0:03:02.1]} 8. Re1 {[%clk 0:02:48.4]}
8... c5 {[%clk 0:03:01.9]} 9. d5 {[%clk 0:02:43]} 9... h6 {[%clk 0:03:01.2]} 10.
Nb5 {[%clk 0:02:32.8]} 10... Nf6 {[%clk 0:03:00.7]} 11. Nd2 {[%clk 0:02:30.9]}
11... Nh7 {[%clk 0:03:00]} 12. Rb1 {[%clk 0:02:28.2]} 12... f5 {[%clk
0:03:00.1]} 13. b4 {[%clk 0:02:27.5]} 13... b6 {[%clk 0:03:00.6]} 14. a4 {[%clk
0:02:25.8]} 14... a5 {[%clk 0:02:58.2]} 15. bxc5 {[%clk 0:02:25.3]} 15... bxc5
{[%clk 0:02:58.3]} 16. Ba3 {[%clk 0:02:23.8]} 16... Nf6 {[%clk 0:02:53.7]} 17.
exf5 {[%clk 0:02:12.6]} 17... gxf5 {[%clk 0:02:45.3]} 18. Nf3 {[%clk 0:02:09.2]}
18... Ng6 {[%clk 0:02:37.3]} 19. Bf1 {[%clk 0:01:53.2]} 19... Rf7 {[%clk
0:02:24.6]} 20. Qc2 {[%clk 0:01:46.7]} 20... e4 {[%clk 0:02:18.1]} 21. Nd2
{[%clk 0:01:44]} 21... Ng4 {[%clk 0:02:17.8]} 22. h3 {[%clk 0:01:38.6]} 22...
N4e5 {[%clk 0:02:13.7]} 23. f3 {[%clk 0:01:25.4]} 23... exf3 {[%clk 0:01:57.8]}
24. Nxf3 {[%clk 0:01:26.3]} 24... Nxf3+ {[%clk 0:01:47]} 25. gxf3 {[%clk
0:01:27.2]} 25... Be5 {[%clk 0:01:47.7]} 26. Re2 {[%clk 0:01:21.1]} 26... Nf4
{[%clk 0:01:45.7]} 27. Rxe5 {[%clk 0:01:16.6]} 27... dxe5 {[%clk 0:01:46.6]} 28.
Bxc5 {[%clk 0:01:17]} 28... Rg7+ {[%clk 0:01:38.5]} 29. Kh2 {[%clk 0:01:13.7]}
29... Qg5 {[%clk 0:01:27.3]} 30. Qf2 {[%clk 0:01:11.3]} 30... e4 {[%clk
0:01:19.6]} 31. fxe4 {[%clk 0:01:04.5]} 31... fxe4 {[%clk 0:01:19.6]} 32. Be3
{[%clk 0:01:04.7]} 32... Rf7 {[%clk 0:01:11.9]} 33. Nd6 {[%clk 0:01:03.3]} 33...
Rf8 {[%clk 0:01:08.8]} 34. Nxe4 {[%clk 0:00:59.9]} 34... Qe5 {[%clk 0:01:08.2]}
35. Ng3 {[%clk 0:00:38.5]} 35... Nxd5 {[%clk 0:00:59.3]} 36. Qd2 {[%clk
0:00:35.4]} 36... Nxe3 {[%clk 0:00:56.9]} 37. Bd3 {[%clk 0:00:33]} 37... Ra7
{[%clk 0:00:42.7]} 38. Rb6 {[%clk 0:00:32.6]} 38... Rg7 {[%clk 0:00:41.6]} 39.
Rg6 {[%clk 0:00:22.9]} 39... Rxg6 {[%clk 0:00:41.3]} 40. Bxg6 {[%clk 0:00:23.8]}
40... Nf1+ {[%clk 0:00:41.6]} 41. Kg2 {[%clk 0:00:21.4]} 41... Qxg3+ {[%clk
0:00:40.7]} 42. Kh1 {[%clk 0:00:21.6]} 42... Nxd2 {[%clk 0:00:39.8]} 0-1

[Event "Early-Titled-Tuesday-Blitz-September-05-2023"]
[Site "Chess.com"]
[Date "2023.09.05"]
[Round "1"]
[White "jk13"]
[Black "Dmitry_Konenkin"]
[Result "1-0"]
[WhiteElo "2685"]
[BlackElo "2391"]
[TimeControl "180+1"]
[EndTime "8:06:47 PDT"]
[Termination "jk13 won on time"]

1. e4 {[%clk 0:02:55.5]} 1... d6 {[%clk 0:02:58.9]} 2. d4 {[%clk 0:02:52.7]}
2... Nf6 {[%clk 0:02:59.5]} 3. Nc3 {[%clk 0:02:51.9]} 3... e5 {[%clk 0:03:00]}
4. Nf3 {[%clk 0:02:50]} 4... Nbd7 {[%clk 0:02:59.5]} 5. Bc4 {[%clk 0:02:50.6]}
5... Be7 {[%clk 0:02:59.4]} 6. O-O {[%clk 0:02:51.2]} 6... c6 {[%clk 0:02:59.3]}
7. a4 {[%clk 0:02:50.5]} 7... Qc7 {[%clk 0:02:59.4]} 8. Re1 {[%clk 0:02:51]}
8... h6 {[%clk 0:02:58.8]} 9. Ba2 {[%clk 0:02:48.5]} 9... Nf8 {[%clk 0:02:58.8]}
10. b4 {[%clk 0:02:37.9]} 10... g5 {[%clk 0:02:54.1]} 11. b5 {[%clk 0:02:32.7]}
11... Ng6 {[%clk 0:02:54.3]} 12. bxc6 {[%clk 0:02:31]} 12... bxc6 {[%clk
0:02:55.2]} 13. d5 {[%clk 0:02:21]} 13... g4 {[%clk 0:02:54.9]} 14. Nd2 {[%clk
0:02:21.3]} 14... cxd5 {[%clk 0:02:35.2]} 15. Nxd5 {[%clk 0:02:21]} 15... Nxd5
{[%clk 0:02:34]} 16. Bxd5 {[%clk 0:02:21.9]} 16... Bb7 {[%clk 0:02:34.5]} 17.
Bxb7 {[%clk 0:02:15.4]} 17... Qxb7 {[%clk 0:02:35.4]} 18. Qxg4 {[%clk
0:02:13.5]} 18... Rc8 {[%clk 0:02:17.6]} 19. c4 {[%clk 0:02:01.9]} 19... Nf4
{[%clk 0:02:07.2]} 20. Nf3 {[%clk 0:01:45.9]} 20... Ne6 {[%clk 0:01:44.1]} 21.
Bd2 {[%clk 0:01:36.1]} 21... Rxc4 {[%clk 0:01:36]} 22. Rab1 {[%clk 0:01:36]}
22... Qc8 {[%clk 0:01:31.1]} 23. Rec1 {[%clk 0:01:30.3]} 23... Rc7 {[%clk
0:00:39]} 24. g3 {[%clk 0:01:25.9]} 24... Kd7 {[%clk 0:00:34.1]} 25. Qf5 {[%clk
0:01:15.2]} 25... Rc2 {[%clk 0:00:16.4]} 26. Rxc2 {[%clk 0:01:10.2]} 26... Qxc2
{[%clk 0:00:17.3]} 27. Rb7+ {[%clk 0:01:10.4]} 27... Ke8 {[%clk 0:00:13.6]} 28.
Rxa7 {[%clk 0:01:01.4]} 28... Qd1+ {[%clk 0:00:10.2]} 29. Kg2 {[%clk 0:01:01.4]}
29... Rg8 {[%clk 0:00:08.5]} 30. Bxh6 {[%clk 0:00:53.9]} 30... Rg6 {[%clk
0:00:06.7]} 31. Be3 {[%clk 0:00:51]} 31... Rf6 {[%clk 0:00:07.1]} 32. Qh5 {[%clk
0:00:44.5]} 32... Bd8 {[%clk 0:00:01.1]} 33. Ra8 {[%clk 0:00:32]} 1-0

[Event "Early-Titled-Tuesday-Blitz-September-05-2023"]
[Site "Chess.com"]
[Date "2023.09.05"]
[Round "1"]
[White "twofoxniel"]
[Black "FeketeBarika"]
[Result "1-0"]
[WhiteElo "2665"]
[BlackElo "2365"]
[TimeControl "180+1"]
[EndTime "8:06:50 PDT"]
[Termination "twofoxniel won by resignation"]

1. e4 {[%clk 0:03:00.9]} 1... e6 {[%clk 0:02:55.2]} 2. d4 {[%clk 0:03:00.5]}
2... d5 {[%clk 0:02:54.7]} 3. Nd2 {[%clk 0:03:00.8]} 3... Be7 {[%clk 0:02:53.8]}
4. Ngf3 {[%clk 0:03:00.1]} 4... Nf6 {[%clk 0:02:51.6]} 5. Bd3 {[%clk 0:02:59.6]}
5... c5 {[%clk 0:02:50.5]} 6. dxc5 {[%clk 0:03:00.1]} 6... O-O {[%clk
0:02:49.3]} 7. Qe2 {[%clk 0:02:59]} 7... a5 {[%clk 0:02:47.8]} 8. O-O {[%clk
0:02:50.8]} 8... Na6 {[%clk 0:02:46.7]} 9. exd5 {[%clk 0:02:45.3]} 9... exd5
{[%clk 0:02:45.9]} 10. c3 {[%clk 0:02:38.5]} 10... Nxc5 {[%clk 0:02:44.7]} 11.
Bc2 {[%clk 0:02:38.8]} 11... Re8 {[%clk 0:02:43.7]} 12. h3 {[%clk 0:02:22.2]}
12... Bd6 {[%clk 0:02:30.4]} 13. Qd1 {[%clk 0:02:21.4]} 13... Bc7 {[%clk
0:02:24.6]} 14. Nb3 {[%clk 0:02:19.2]} 14... Nce4 {[%clk 0:02:18.7]} 15. Be3
{[%clk 0:02:15.2]} 15... Qd6 {[%clk 0:01:58]} 16. Nbd4 {[%clk 0:02:13.3]} 16...
Bd7 {[%clk 0:01:53]} 17. a4 {[%clk 0:02:10.2]} 17... Rad8 {[%clk 0:01:49.7]} 18.
Re1 {[%clk 0:02:06.9]} 18... Nh5 {[%clk 0:01:27.2]} 19. Bb3 {[%clk 0:01:51.9]}
19... Bxh3 {[%clk 0:00:54.1]} 20. gxh3 {[%clk 0:01:47.2]} 20... Qg6+ {[%clk
0:00:53.6]} 21. Kf1 {[%clk 0:01:33.7]} 21... Nhg3+ {[%clk 0:00:44.6]} 22. fxg3
{[%clk 0:01:33.7]} 22... Nxg3+ {[%clk 0:00:41.8]} 23. Kg2 {[%clk 0:01:09.5]}
23... Ne4+ {[%clk 0:00:27.2]} 24. Ng5 {[%clk 0:01:04.7]} 24... Nxg5 {[%clk
0:00:26.2]} 25. Qg4 {[%clk 0:01:04.3]} 25... Rxe3 {[%clk 0:00:21.6]} 26. Rxe3
{[%clk 0:01:03.8]} 26... h5 {[%clk 0:00:17.5]} 27. Qf5 {[%clk 0:01:01.2]} 27...
Qh6 {[%clk 0:00:10.1]} 28. Rf1 {[%clk 0:00:55.5]} 28... Rf8 {[%clk 0:00:08.5]}
29. Bxd5 {[%clk 0:00:54.2]} 29... Qd6 {[%clk 0:00:05.3]} 30. Qxg5 {[%clk
0:00:45.5]} 30... Qh2+ {[%clk 0:00:05.2]} 31. Kf3 {[%clk 0:00:45.7]} 31... Qxh3+
{[%clk 0:00:04.9]} 32. Ke2 {[%clk 0:00:45.6]} 32... Qh2+ {[%clk 0:00:04.1]} 33.
Rf2 {[%clk 0:00:45.6]} 33... Qd6 {[%clk 0:00:04.5]} 34. Rg2 {[%clk 0:00:44.1]}
1-0